[Event "Manhemjunioren 2024"]
[Site "Goteborgs Schackcentrum, Vegatan 20, Gothenburg, Sweden"]
[Date "2024.04.06"]
[Round "4.2"]
[White "Ramovic, Isak"]
[Black "Kaplan, Viktor"]
[Result "0-1"]
[TimeControl "18 minutes + 10 seconds per move from move one."]
[WhiteFideId "1779281"]
[BlackFideId "1780956"]
[WhiteElo "1561"]
[BlackElo "1596"]

1. e4 {[%clk 00:18:19]} e6 {[%clk 00:18:18]} {[%emt 00:00:03]} 2. d4 {[%clk
00:18:28]} {[%emt 00:00:01]} d5 {[%clk 00:18:27]} 3. exd5 {[%clk 00:18:37]}
exd5 {[%clk 00:18:36]} {[%emt 00:00:02]} 4. Bd3 {[%clk 00:18:46]} Nf6 {[%clk
00:18:44]} {[%emt 00:00:01]} 5. Nf3 {[%clk 00:18:54]} {[%emt 00:00:02]} Bd6
{[%clk 00:18:54]} 6. O-O {[%clk 00:18:57]} {[%emt 00:00:06]} O-O {[%clk
00:19:02]} {[%emt 00:00:02]} 7. Nc3 {[%clk 00:19:03]} {[%emt 00:00:04]} c6
{[%clk 00:19:11]} {[%emt 00:00:01]} 8. Re1 {[%clk 00:19:07]} {[%emt 00:00:06]}
Bg4 {[%clk 00:19:16]} {[%emt 00:00:04]} 9. h3 {[%clk 00:19:00]} {[%emt
00:00:18]} Bh5 {[%clk 00:19:25]} {[%emt 00:00:01]} 10. Bg5 {[%clk 00:19:04]}
{[%emt 00:00:05]} Nbd7 {[%clk 00:19:30]} {[%emt 00:00:05]} 11. Bf5 {[%clk
00:17:00]} {[%emt 00:02:14]} Qc7 {[%clk 00:19:32]} {[%emt 00:00:07]} 12. Qd3
{[%clk 00:14:58]} {[%emt 00:02:13]} Bf4 {[%clk 00:14:54]} {[%emt 00:04:47]} 13.
Bxf4 {[%clk 00:13:31]} {[%emt 00:01:37]} Qxf4 {[%clk 00:15:00]} {[%emt
00:00:04]} 14. Ne2 {[%clk 00:12:52]} {[%emt 00:00:50]} Qh6 {[%clk 00:12:59]}
{[%emt 00:01:53]} 15. Ng3 {[%clk 00:10:24]} {[%emt 00:02:56]} Bg6 {[%clk
00:12:36]} {[%emt 00:00:28]} 16. Bxg6 {[%clk 00:10:08]} {[%emt 00:00:29]} hxg6
{[%clk 00:12:43]} {[%emt 00:00:04]} 17. Qe3 {[%clk 00:07:46]} {[%emt 00:02:33]}
Rfe8 {[%clk 00:11:54]} {[%emt 00:00:59]} 18. Qd3 {[%clk 00:06:17]} {[%emt
00:01:39]} Qf4 {[%clk 00:10:41]} {[%emt 00:01:22]} 19. Rxe8+ {[%clk 00:05:23]}
{[%emt 00:01:04]} Rxe8 {[%clk 00:10:48]} {[%emt 00:00:03]} 20. Re1 {[%clk
00:05:31]} {[%emt 00:00:02]} Ne4 {[%clk 00:09:43]} {[%emt 00:01:15]} 21. Nxe4
{[%clk 00:04:42]} {[%emt 00:00:59]} Rxe4 {[%clk 00:09:00]} {[%emt 00:00:52]} 22.
Rxe4 {[%clk 00:04:30]} {[%emt 00:00:23]} dxe4 {[%clk 00:09:04]} {[%emt
00:00:06]} 23. Qd2 {[%clk 00:04:12]} {[%emt 00:00:29]} Qxd2 {[%clk 00:05:55]}
{[%emt 00:03:19]} 24. Nxd2 {[%clk 00:04:20]} {[%emt 00:00:03]} f5 {[%clk
00:06:04]} 25. Kf1 {[%clk 00:03:51]} {[%emt 00:00:39]} Kf7 {[%clk 00:05:52]}
{[%emt 00:00:21]} 26. c4 {[%clk 00:03:40]} {[%emt 00:00:22]} Ke6 {[%clk
00:05:41]} {[%emt 00:00:20]} 27. Ke2 {[%clk 00:03:33]} {[%emt 00:00:16]} b5
{[%clk 00:04:29]} {[%emt 00:01:23]} 28. f3 {[%clk 00:01:36]} {[%emt 00:02:08]}
exf3+ {[%clk 00:04:25]} {[%emt 00:00:14]} 29. Kxf3 {[%clk 00:01:43]} {[%emt
00:00:02]} bxc4 {[%clk 00:04:21]} {[%emt 00:00:13]} 30. Nxc4 {[%clk 00:01:48]}
{[%emt 00:00:05]} Kd5 {[%clk 00:04:24]} {[%emt 00:00:03]} 31. Na5 {[%clk
00:01:46]} {[%emt 00:00:17]} Nf8 {[%clk 00:04:17]} {[%emt 00:00:16]} 32. Ke3
{[%clk 00:01:06]} {[%emt 00:00:50]} Ne6 {[%clk 00:04:21]} {[%emt 00:00:06]} 33.
Nb3 {[%clk 00:01:07]} {[%emt 00:00:10]} g5 {[%clk 00:03:46]} {[%emt 00:00:44]}
34. g3 {[%clk 00:00:44]} {[%emt 00:00:33]} f4+ {[%clk 00:03:36]} {[%emt
00:00:20]} 35. Kf3 {[%clk 00:00:29]} {[%emt 00:00:25]} fxg3 {[%clk 00:02:11]}
{[%emt 00:01:35]} 36. Kxg3 {[%clk 00:00:36]} {[%emt 00:00:03]} Nxd4 {[%clk
00:02:03]} {[%emt 00:00:18]} 37. Nxd4 {[%clk 00:00:28]} {[%emt 00:00:18]} Kxd4
{[%clk 00:02:12]} 38. Kg4 {[%clk 00:00:36]} {[%emt 00:00:02]} Kd3 {[%clk
00:02:05]} {[%emt 00:00:17]} 39. Kxg5 {[%clk 00:00:43]} {[%emt 00:00:03]} Kc2
{[%clk 00:02:13]} 40. h4 {[%clk 00:00:48]} {[%emt 00:00:06]} Kxb2 {[%clk
00:02:21]} {[%emt 00:00:01]} 41. h5 {[%clk 00:00:57]} {[%emt 00:00:02]} c5
{[%clk 00:02:30]} {[%emt 00:00:02]} 42. Kg6 {[%clk 00:01:05]} {[%emt 00:00:01]}
c4 {[%clk 00:02:37]} {[%emt 00:00:03]} 43. Kxg7 {[%clk 00:01:08]} {[%emt
00:00:07]} c3 {[%clk 00:02:46]} {[%emt 00:00:01]} 44. h6 {[%clk 00:01:10]}
{[%emt 00:00:08]} c2 {[%clk 00:02:54]} {[%emt 00:00:01]} 45. h7 {[%clk
00:01:16]} {[%emt 00:00:04]} c1=Q {[%clk 00:03:00]} {[%emt 00:00:05]} 46. h8=Q
{[%emt 00:00:05]} Qc3+ {[%clk 00:03:07]} {[%emt 00:00:02]} 47. Kg8 {[%clk
00:01:24]} {[%emt 00:00:07]} Qxh8+ {[%clk 00:03:14]} {[%emt 00:00:02]} 48. Kxh8
{[%clk 00:01:32]} {[%emt 00:00:03]} Kxa2 {[%clk 00:03:18]} {[%emt 00:00:05]} 49.
Kg7 {[%clk 00:01:39]} {[%emt 00:00:03]} Kb3 {[%clk 00:03:26]} {[%emt 00:00:02]}
50. Kf6 {[%clk 00:01:45]} {[%emt 00:00:05]} a6 {[%clk 00:03:35]} 51. Ke5 {[%clk
00:01:53]} {[%emt 00:00:02]} a5 {[%clk 00:03:42]} {[%emt 00:00:04]} 52. Kd4
{[%clk 00:01:59]} {[%emt 00:00:03]} a4 {[%clk 00:03:50]} {[%emt 00:00:02]} 53.
Kd3 {[%clk 00:02:07]} {[%emt 00:00:03]} Kb2 {[%clk 00:03:59]} 54. Ke4 {[%clk
00:02:00]} 0-1

[Event "Manhemjunioren 2024"]
[Site "Goteborgs Schackcentrum, Vegatan 20, Gothenburg, Sweden"]
[Date "2024.04.06"]
[Round "4.3"]
[White "Murugaraja, Yogeshwer"]
[Black "Havner, Arvid"]
[Result "0-1"]
[TimeControl "18 minutes + 10 seconds per move from move one."]
[WhiteFideId "1779389"]
[BlackFideId "1769308"]
[WhiteElo "1587"]
[BlackElo "1782"]

1. c4 {[%clk 00:18:17]} {[%emt 00:00:02]} e5 {[%clk 00:18:18]} {[%emt
00:00:02]} 2. g3 {[%clk 00:18:25]} {[%emt 00:00:02]} c6 {[%clk 00:18:22]}
{[%emt 00:00:07]} 3. Bg2 {[%clk 00:18:31]} {[%emt 00:00:04]} d5 {[%clk
00:18:29]} {[%emt 00:00:04]} 4. cxd5 {[%clk 00:18:33]} {[%emt 00:00:07]} cxd5
{[%clk 00:18:38]} {[%emt 00:00:01]} 5. d3 {[%clk 00:17:48]} {[%emt 00:00:55]}
Nc6 {[%clk 00:18:41]} {[%emt 00:00:07]} 6. Nc3 {[%clk 00:17:40]} {[%emt
00:00:17]} Be6 {[%clk 00:18:48]} {[%emt 00:00:04]} 7. Nf3 {[%clk 00:17:31]}
{[%emt 00:00:19]} Nf6 {[%clk 00:18:53]} {[%emt 00:00:05]} 8. e4 {[%clk
00:17:16]} {[%emt 00:00:24]} dxe4 {[%clk 00:18:48]} {[%emt 00:00:15]} 9. dxe4
{[%clk 00:17:23]} {[%emt 00:00:04]} Qxd1+ {[%clk 00:18:54]} {[%emt 00:00:04]}
10. Nxd1 {[%clk 00:17:06]} {[%emt 00:00:28]} Nxe4 {[%clk 00:18:29]} {[%emt
00:00:35]} 11. Nxe5 {[%clk 00:16:58]} {[%emt 00:00:17]} Bb4+ {[%clk 00:18:38]}
{[%emt 00:00:02]} 12. Ke2 {[%clk 00:16:48]} {[%emt 00:00:19]} Nxe5 {[%clk
00:17:32]} {[%emt 00:01:16]} 13. Bxe4 {[%clk 00:16:49]} {[%emt 00:00:09]} Bc4+
{[%clk 00:17:38]} {[%emt 00:00:04]} 14. Ke3 {[%clk 00:16:50]} {[%emt 00:00:07]}
O-O {[%clk 00:16:45]} {[%emt 00:01:06]} 15. Bxb7 {[%clk 00:16:24]} {[%emt
00:00:36]} Rad8 {[%clk 00:16:18]} {[%emt 00:00:35]} 16. Nc3 {[%clk 00:16:00]}
{[%emt 00:00:35]} Rd3+ {[%clk 00:15:29]} {[%emt 00:00:57]} 17. Ke4 {[%clk
00:15:53]} {[%emt 00:00:20]} f5+ {[%emt 00:00:40]} 18. Kxe5 {[%clk 00:15:41]}
{[%emt 00:00:01]} Bd6# {[%clk 00:15:15]} 0-1

[Event "Manhemjunioren 2024"]
[Site "Goteborgs Schackcentrum, Vegatan 20, Gothenburg, Sweden"]
[Date "2024.04.06"]
[Round "4.4"]
[White "Lappas Lonnermark, Johannes"]
[Black "Bergdahl, Daniel"]
[Result "0-1"]
[TimeControl "18 minutes + 10 seconds per move from move one."]
[WhiteFideId "1773437"]
[BlackFideId "1780921"]
[WhiteElo "1577"]
[BlackElo "1627"]

1. e4 {[%clk 00:18:18]} {[%emt 00:00:04]} c6 {[%clk 00:18:26]} {[%emt
00:00:02]} 2. d4 {[%clk 00:18:25]} {[%emt 00:00:03]} d5 {[%clk 00:18:35]} 3.
Nc3 {[%clk 00:18:33]} {[%emt 00:00:01]} dxe4 {[%clk 00:18:43]} {[%emt
00:00:02]} 4. Nxe4 {[%clk 00:18:41]} {[%emt 00:00:03]} Nf6 {[%clk 00:18:52]}
{[%emt 00:00:01]} 5. Nxf6+ {[%clk 00:18:48]} {[%emt 00:00:03]} exf6 {[%clk
00:19:00]} {[%emt 00:00:01]} 6. c3 {[%clk 00:18:56]} {[%emt 00:00:03]} Be7
{[%clk 00:19:06]} {[%emt 00:00:04]} 7. Bd3 {[%clk 00:19:03]} {[%emt 00:00:03]}
O-O {[%clk 00:19:13]} {[%emt 00:00:03]} 8. Ne2 {[%clk 00:18:52]} {[%emt
00:00:20]} Be6 {[%clk 00:19:15]} {[%emt 00:00:08]} 9. O-O {[%clk 00:18:58]}
{[%emt 00:00:04]} Nd7 {[%clk 00:19:23]} {[%emt 00:00:02]} 10. Bf4 {[%clk
00:18:35]} {[%emt 00:00:33]} Rc8 {[%clk 00:19:19]} {[%emt 00:00:14]} 11. Qc2
{[%clk 00:18:40]} {[%emt 00:00:06]} g6 {[%clk 00:19:18]} {[%emt 00:00:11]} 12.
Ng3 {[%clk 00:18:22]} {[%emt 00:00:27]} Re8 {[%clk 00:19:14]} {[%emt 00:00:14]}
13. Rfe1 {[%clk 00:18:05]} {[%emt 00:00:28]} c5 {[%clk 00:18:32]} {[%emt
00:00:52]} 14. dxc5 {[%clk 00:16:26]} {[%emt 00:01:49]} Nxc5 {[%clk 00:18:28]}
{[%emt 00:00:14]} 15. Bb5 {[%clk 00:16:01]} {[%emt 00:00:35]} Bd7 {[%clk
00:18:30]} {[%emt 00:00:08]} 16. Bxd7 {[%clk 00:15:58]} {[%emt 00:00:13]} Qxd7
{[%clk 00:18:10]} {[%emt 00:00:29]} 17. Rad1 {[%clk 00:15:34]} {[%emt
00:00:34]} Qb5 {[%clk 00:17:26]} {[%emt 00:00:55]} 18. Ne4 {[%clk 00:14:32]}
{[%emt 00:01:12]} Nxe4 {[%clk 00:17:16]} {[%emt 00:00:20]} 19. Rxe4 {[%clk
00:14:38]} {[%emt 00:00:04]} Bc5 {[%clk 00:16:28]} {[%emt 00:00:57]} 20. c4
{[%clk 00:13:46]} {[%emt 00:01:02]} Qb6 {[%clk 00:15:26]} {[%emt 00:01:13]} 21.
Ree1 {[%clk 00:12:33]} {[%emt 00:01:22]} Rxe1+ {[%clk 00:15:12]} {[%emt
00:00:24]} 22. Rxe1 {[%clk 00:12:37]} {[%emt 00:00:06]} Qa5 {[%clk 00:15:16]}
{[%emt 00:00:06]} 23. Ra1 {[%clk 00:07:02]} {[%emt 00:05:45]} Re8 {[%clk
00:14:40]} {[%emt 00:00:47]} 24. h3 {[%clk 00:06:52]} {[%emt 00:00:20]} Re1+
{[%clk 00:14:40]} {[%emt 00:00:09]} 25. Rxe1 {[%clk 00:06:58]} {[%emt
00:00:03]} Qxe1+ {[%clk 00:14:47]} {[%emt 00:00:03]} 26. Kh2 {[%clk 00:07:07]}
{[%emt 00:00:02]} Bxf2 {[%clk 00:14:54]} {[%emt 00:00:04]} 0-1

[Event "Manhemjunioren 2024"]
[Site "Goteborgs Schackcentrum, Vegatan 20, Gothenburg, Sweden"]
[Date "2024.04.06"]
[Round "4.5"]
[White "Bahl, Advaiya"]
[Black "Bergdahl, Martin"]
[Result "1/2-1/2"]
[TimeControl "18 minutes + 10 seconds per move from move one."]
[WhiteFideId "1782002"]
[BlackFideId "1782231"]
[WhiteElo "1609"]
[BlackElo "1533"]

1. e4 {[%clk 00:18:19]} {[%emt 00:00:01]} c6 {[%clk 00:18:18]} {[%emt
00:00:03]} 2. Nf3 {[%clk 00:18:17]} {[%emt 00:00:11]} d5 {[%clk 00:18:27]}
{[%emt 00:00:02]} 3. exd5 {[%clk 00:18:26]} {[%emt 00:00:01]} cxd5 {[%clk
00:18:36]} 4. d4 {[%clk 00:18:34]} {[%emt 00:00:01]} Nc6 {[%clk 00:18:43]}
{[%emt 00:00:03]} 5. Bd3 {[%clk 00:18:38]} {[%emt 00:00:06]} Bg4 {[%clk
00:18:51]} {[%emt 00:00:02]} 6. c3 {[%clk 00:18:44]} {[%emt 00:00:04]} e5
{[%clk 00:18:57]} {[%emt 00:00:03]} 7. dxe5 {[%clk 00:18:18]} {[%emt 00:00:37]}
Nxe5 {[%clk 00:19:05]} {[%emt 00:00:02]} 8. Bb5+ {[%clk 00:18:01]} {[%emt
00:00:27]} Nc6 {[%clk 00:18:56]} {[%emt 00:00:18]} 9. h3 {[%clk 00:17:48]}
{[%emt 00:00:24]} Qe7+ {[%clk 00:18:43]} {[%emt 00:00:23]} 10. Be3 {[%clk
00:17:38]} {[%emt 00:00:20]} Bh5 {[%clk 00:18:50]} {[%emt 00:00:02]} 11. Qxd5
{[%clk 00:17:25]} {[%emt 00:00:24]} Bxf3 {[%clk 00:18:49]} {[%emt 00:00:10]} 12.
Qxf3 {[%clk 00:17:28]} {[%emt 00:00:07]} Qd6 {[%clk 00:18:44]} {[%emt
00:00:16]} 13. O-O {[%clk 00:16:29]} {[%emt 00:01:09]} Nf6 {[%clk 00:18:18]}
{[%emt 00:00:10]} 14. Nd2 {[%clk 00:16:39]} Be7 {[%clk 00:18:25]} {[%emt
00:00:29]} 15. Ne4 {[%clk 00:16:04]} {[%emt 00:00:45]} Nxe4 {[%clk 00:18:29]}
{[%emt 00:00:05]} 16. Qxe4 {[%clk 00:16:10]} {[%emt 00:00:03]} O-O {[%clk
00:18:35]} {[%emt 00:00:06]} 17. Bxc6 {[%clk 00:16:04]} {[%emt 00:00:16]} bxc6
{[%clk 00:18:44]} {[%emt 00:00:01]} 18. b4 {[%clk 00:16:06]} {[%emt 00:00:08]}
Qc7 {[%clk 00:18:18]} {[%emt 00:00:36]} 19. Bf4 {[%clk 00:15:32]} {[%emt
00:00:43]} Qb7 {[%clk 00:18:20]} {[%emt 00:00:08]} 20. Rfe1 {[%clk 00:15:28]}
{[%emt 00:00:15]} Rfe8 {[%clk 00:18:25]} {[%emt 00:00:04]} 21. Bd6 {[%clk
00:15:21]} {[%emt 00:00:18]} Bxd6 {[%clk 00:18:08]} {[%emt 00:00:27]} 22. Qd4
{[%clk 00:14:35]} {[%emt 00:00:57]} Red8 {[%clk 00:18:03]} {[%emt 00:00:08]} 23.
g3 {[%clk 00:14:14]} {[%emt 00:00:36]} Bxg3 {[%clk 00:18:01]} {[%emt 00:00:12]}
24. Qe3 {[%clk 00:14:06]} {[%emt 00:00:19]} Bd6 {[%emt 00:00:20]} 25. Rad1
{[%clk 00:14:10]} Bf8 {[%clk 00:17:44]} {[%emt 00:00:22]} 26. Rxd8 {[%clk
00:13:49]} {[%emt 00:00:31]} Rxd8 {[%clk 00:17:51]} {[%emt 00:00:03]} 27. Qg5
{[%clk 00:13:55]} {[%emt 00:00:04]} Qd7 {[%clk 00:17:40]} {[%emt 00:00:21]} 28.
Qe3 {[%clk 00:13:39]} {[%emt 00:00:26]} Qd2 {[%clk 00:17:45]} {[%emt 00:00:06]}
29. a4 {[%clk 00:13:25]} {[%emt 00:00:24]} Qxe3 {[%clk 00:17:40]} {[%emt
00:00:14]} 30. Rxe3 {[%clk 00:13:33]} {[%emt 00:00:02]} Rd1+ {[%clk 00:17:46]}
{[%emt 00:00:05]} 31. Kg2 {[%clk 00:13:40]} {[%emt 00:00:03]} Ra1 {[%clk
00:17:55]} {[%emt 00:00:01]} 32. a5 {[%clk 00:13:05]} {[%emt 00:00:46]} c5
{[%clk 00:17:52]} {[%emt 00:00:12]} 33. Re8 {[%clk 00:13:03]} {[%emt 00:00:11]}
cxb4 {[%clk 00:17:59]} {[%emt 00:00:03]} 34. cxb4 {[%clk 00:13:11]} {[%emt
00:00:02]} Ra4 {[%clk 00:18:07]} {[%emt 00:00:03]} 35. Ra8 {[%clk 00:12:53]}
{[%emt 00:00:28]} g6 {[%clk 00:18:14]} {[%emt 00:00:03]} 36. Rxa7 {[%clk
00:12:52]} {[%emt 00:00:10]} Bxb4 {[%clk 00:18:22]} {[%emt 00:00:03]} 37. Ra8+
{[%clk 00:12:58]} {[%emt 00:00:04]} Kg7 {[%clk 00:18:30]} {[%emt 00:00:01]} 38.
a6 {[%clk 00:13:07]} {[%emt 00:00:02]} Bc5 {[%clk 00:18:38]} {[%emt 00:00:01]}
39. f3 {[%clk 00:13:09]} {[%emt 00:00:09]} Ra2+ {[%clk 00:18:42]} {[%emt
00:00:06]} 40. Kg3 {[%clk 00:13:14]} {[%emt 00:00:05]} g5 {[%clk 00:18:29]}
{[%emt 00:00:23]} 41. Kg4 {[%clk 00:13:06]} {[%emt 00:00:18]} h6 {[%clk
00:18:24]} {[%emt 00:00:15]} 42. Rc8 {[%clk 00:12:34]} {[%emt 00:00:42]} Ra4+
{[%clk 00:18:23]} {[%emt 00:00:11]} 43. Kg3 {[%clk 00:12:28]} {[%emt 00:00:17]}
Bd6+ {[%clk 00:18:30]} {[%emt 00:00:03]} 44. Kg2 {[%clk 00:12:31]} {[%emt
00:00:06]} Rxa6 {[%clk 00:18:37]} {[%emt 00:00:03]} 45. Rc2 {[%clk 00:12:33]}
{[%emt 00:00:08]} Bf4 {[%emt 00:00:08]} 46. Re2 {[%clk 00:12:36]} Rd6 {[%clk
00:18:53]} {[%emt 00:00:03]} 47. Rc2 {[%clk 00:12:41]} {[%emt 00:00:04]} Rd2+
{[%clk 00:19:02]} {[%emt 00:00:02]} 48. Rxd2 {[%clk 00:12:48]} {[%emt
00:00:03]} Bxd2 {[%clk 00:19:10]} {[%emt 00:00:02]} 49. Kg3 {[%clk 00:12:56]}
{[%emt 00:00:02]} f5 {[%clk 00:19:18]} {[%emt 00:00:02]} 50. Kg2 {[%clk
00:13:03]} {[%emt 00:00:02]} f4 {[%clk 00:19:27]} {[%emt 00:00:02]} 51. Kf2
{[%clk 00:13:08]} {[%emt 00:00:05]} Kf6 {[%clk 00:19:36]} {[%emt 00:00:02]} 52.
Ke2 {[%clk 00:13:16]} {[%emt 00:00:01]} Be3 {[%clk 00:19:44]} {[%emt 00:00:02]}
53. Kd3 {[%clk 00:13:21]} {[%emt 00:00:06]} Ke5 {[%clk 00:19:52]} {[%emt
00:00:01]} 54. Kc4 {[%clk 00:13:27]} {[%emt 00:00:03]} h5 {[%clk 00:20:01]}
{[%emt 00:00:01]} 55. Kd3 {[%clk 00:13:36]} {[%emt 00:00:02]} Bf2 {[%clk
00:20:09]} {[%emt 00:00:02]} 56. Kc4 {[%clk 00:13:40]} {[%emt 00:00:06]} g4
{[%clk 00:20:08]} {[%emt 00:00:11]} 57. fxg4 {[%clk 00:13:36]} {[%emt
00:00:14]} hxg4 {[%clk 00:20:16]} {[%emt 00:00:01]} 58. hxg4 {[%clk 00:13:42]}
{[%emt 00:00:05]} f3 {[%clk 00:20:24]} {[%emt 00:00:01]} 59. Kd3 {[%clk
00:13:49]} {[%emt 00:00:04]} Kf4 {[%clk 00:20:32]} {[%emt 00:00:02]} 60. g5
{[%clk 00:13:33]} {[%emt 00:00:26]} Bh4 {[%clk 00:20:37]} {[%emt 00:00:05]} 61.
g6 {[%clk 00:13:39]} {[%emt 00:00:04]} f2 {[%clk 00:20:39]} {[%emt 00:00:06]}
62. Ke2 {[%clk 00:13:46]} {[%emt 00:00:04]} Bf6 {[%clk 00:20:17]} {[%emt
00:00:33]} 63. Kxf2 {[%clk 00:13:54]} {[%emt 00:00:02]} Kg5 {[%clk 00:20:25]}
{[%emt 00:00:02]} 1/2-1/2

[Event "Manhemjunioren 2024"]
[Site "Goteborgs Schackcentrum, Vegatan 20, Gothenburg, Sweden"]
[Date "2024.04.06"]
[Round "4.6"]
[White "Back, Arvid"]
[Black "Hansson, Isabelle"]
[Result "1-0"]
[TimeControl "18 minutes + 10 seconds per move from move one."]
[WhiteFideId "1772821"]
[BlackFideId "1773593"]
[WhiteElo "1512"]
[BlackElo "1414"]

1. e4 {[%clk 00:18:18]} {[%emt 00:00:01]} e5 {[%clk 00:18:19]} {[%emt
00:00:02]} 2. Nf3 {[%clk 00:18:27]} {[%emt 00:00:01]} Nc6 {[%clk 00:18:26]}
{[%emt 00:00:03]} 3. d4 {[%clk 00:18:36]} f6 {[%clk 00:18:31]} {[%emt
00:00:05]} 4. d5 {[%clk 00:18:45]} Nce7 {[%clk 00:18:34]} {[%emt 00:00:06]} 5.
Bc4 {[%clk 00:18:48]} {[%emt 00:00:07]} Ng6 {[%clk 00:17:55]} {[%emt 00:00:49]}
6. Nc3 {[%clk 00:18:52]} {[%emt 00:00:07]} Bc5 {[%clk 00:17:38]} {[%emt
00:00:28]} 7. O-O {[%clk 00:18:20]} {[%emt 00:00:41]} N8e7 {[%clk 00:17:26]}
{[%emt 00:00:22]} 8. Nb5 {[%clk 00:18:07]} {[%emt 00:00:23]} f5 {[%clk
00:16:49]} {[%emt 00:00:46]} 9. d6 {[%clk 00:18:07]} {[%emt 00:00:10]} cxd6
{[%clk 00:16:27]} {[%emt 00:00:32]} 10. Nxd6+ {[%clk 00:18:15]} {[%emt
00:00:02]} Bxd6 {[%clk 00:16:22]} {[%emt 00:00:15]} 11. Qxd6 {[%clk 00:18:21]}
{[%emt 00:00:03]} fxe4 {[%clk 00:14:47]} {[%emt 00:01:45]} 12. Nxe5 {[%clk
00:18:06]} {[%emt 00:00:26]} Nxe5 {[%clk 00:14:45]} {[%emt 00:00:11]} 13. Qxe5
{[%clk 00:18:13]} {[%emt 00:00:02]} d6 {[%clk 00:13:40]} {[%emt 00:01:16]} 14.
Qxe4 {[%clk 00:18:09]} {[%emt 00:00:14]} Bf5 {[%clk 00:13:28]} {[%emt
00:00:22]} 15. Qxb7 {[%clk 00:17:32]} {[%emt 00:00:46]} a5 {[%clk 00:12:36]}
{[%emt 00:01:02]} 16. Bb5+ {[%clk 00:17:41]} {[%emt 00:00:02]} Bd7 {[%clk
00:12:44]} {[%emt 00:00:03]} 17. Bxd7+ {[%clk 00:17:48]} {[%emt 00:00:02]} Kf8
{[%clk 00:12:22]} {[%emt 00:00:32]} 18. Qf3+ {[%clk 00:17:57]} {[%emt
00:00:01]} Nf5 {[%clk 00:12:06]} {[%emt 00:00:27]} 19. Qxf5+ {[%clk 00:18:05]}
{[%emt 00:00:01]} Qf6 {[%clk 00:12:13]} {[%emt 00:00:03]} 20. Qxf6+ {[%clk
00:18:05]} {[%emt 00:00:09]} gxf6 {[%clk 00:12:21]} {[%emt 00:00:02]} 21. Bc6
{[%clk 00:18:06]} {[%emt 00:00:10]} Rc8 {[%clk 00:12:24]} {[%emt 00:00:07]} 22.
Be4 {[%clk 00:18:14]} {[%emt 00:00:02]} Rg8 {[%clk 00:11:56]} {[%emt 00:00:38]}
23. Bf4 {[%clk 00:18:21]} {[%emt 00:00:04]} Ke7 {[%clk 00:11:54]} {[%emt
00:00:11]} 24. Rfe1 {[%clk 00:18:23]} {[%emt 00:00:07]} Kd7 {[%clk 00:11:56]}
{[%emt 00:00:09]} 25. Bf5+ {[%clk 00:18:32]} {[%emt 00:00:01]} Kd8 {[%clk
00:11:58]} {[%emt 00:00:08]} 26. Bxc8 {[%clk 00:18:40]} {[%emt 00:00:02]} Kxc8
{[%clk 00:12:06]} {[%emt 00:00:02]} 27. Bxd6 {[%clk 00:18:49]} {[%emt
00:00:01]} Rd8 {[%clk 00:12:08]} {[%emt 00:00:09]} 28. Be7 {[%clk 00:18:54]}
{[%emt 00:00:05]} Rd2 {[%clk 00:10:55]} {[%emt 00:01:23]} 29. Bxf6 {[%clk
00:19:00]} {[%emt 00:00:02]} Kc7 {[%clk 00:10:26]} {[%emt 00:00:38]} 30. g3
{[%clk 00:19:08]} {[%emt 00:00:03]} Kb6 {[%clk 00:10:17]} {[%emt 00:00:20]} 31.
Re6+ {[%clk 00:19:03]} {[%emt 00:00:14]} Kc5 {[%clk 00:10:12]} {[%emt
00:00:15]} 32. Re5+ {[%clk 00:19:09]} {[%emt 00:00:05]} Kd6 {[%clk 00:10:01]}
{[%emt 00:00:21]} 33. Rxa5 {[%clk 00:19:13]} {[%emt 00:00:05]} Rxc2 {[%clk
00:10:05]} {[%emt 00:00:08]} 34. Rd1+ {[%clk 00:19:20]} {[%emt 00:00:03]} Ke6
{[%clk 00:10:12]} {[%emt 00:00:03]} 35. Bc3 {[%clk 00:19:23]} {[%emt 00:00:06]}
Ke7 {[%clk 00:09:19]} {[%emt 00:01:03]} 36. Ra6 {[%clk 00:19:32]} {[%emt
00:00:01]} Kf7 {[%clk 00:09:20]} {[%emt 00:00:09]} 37. Rd7+ {[%clk 00:19:39]}
{[%emt 00:00:02]} Ke8 {[%clk 00:09:28]} {[%emt 00:00:01]} 38. Rxh7 {[%clk
00:19:48]} {[%emt 00:00:01]} Kf8 {[%clk 00:09:36]} {[%emt 00:00:03]} 39. Ra8#
{[%clk 00:19:57]} {[%emt 00:00:01]} 1-0